bitfinex/quotes_ETHUSD_20220227
["timestamp","ask_amount","ask_price","bid_price","bid_amount"]
[1645939738446,0.67053722,2717.4,2717.1,1.28616481]
[1645939738643,0.67053722,2717.4,2717.1,0.0018323]
[1645939741204,1.34023722,2717.4,2717.1,0.0018323]
[1645939742205,2.033872,2717.4,2717.1,0.0018323]
[1645939742904,2.03965836,2717.4,2717.1,0.0018323]
[1645939743703,2.033872,2717.4,2717.1,0.0018323]
[1645939743906,13.29965836,2717.4,2717.1,0.0018323]
[1645939744346,0.3697,2717.2,2717.1,0.0018323]
[1645939744546,0.6697,2717.2,2717.1,0.0018323]
[1645939752240,11.9297,2717.2,2717.1,0.0018323]
[1645939752441,13.3571,2717.2,2717.1,0.0018323]
[1645939752640,14.5887,2717.2,2717.1,0.0018323]
[1645939753045,21.04914772,2717.2,2717.1,3.23e-05]
[1645939753243,21.68816189,2717.2,2717.1,3.23e-05]
[1645939753442,21.68816189,2717.2,2715.9,0.00096]
[1645939753443,0.3697,2716.8,2715.9,0.00096]
[1645939753643,0.3697,2716.2,2716.0,0.00390134]
[1645939753843,1.6415,2716.2,2716.0,0.00390134]
[1645939754244,0.52802077,2716.1,2716.0,0.00390134]
[1645939754445,0.89772077,2716.1,2716.0,0.00390134]
[1645939754644,0.89772077,2716.1,2715.8,0.00179638]
[1645939754842,0.3697,2716.1,2716.0,0.00390137]
[1645939755042,0.89771229,2716.1,2716.0,0.00390137]
[1645939755693,0.89771229,2716.1,2715.8,0.00179638]
[1645939755897,0.52801229,2716.0,2715.9,0.00390144]
[1645939756094,0.82801229,2716.0,2715.9,0.00390144]
[1645939756892,0.82801229,2716.0,2715.2,1.4155622]
[1645939757094,0.3,2716.0,2715.2,1.4155622]
[1645939757395,0.3,2716.2,2715.8,0.0039025]
[1645939757994,0.3,2716.4,2715.8,0.0039025]
[1645939758195,0.3,2716.4,2715.3,3.5]
[1645939758395,0.3697,2716.5,2715.9,0.00390243]
[1645939758595,0.3697,2716.5,2715.9,0.00123319]
[1645939758996,0.3697,2716.5,2715.1,3.75]
[1645939759252,11.6297,2716.5,2715.1,3.75]
[1645939759650,12.6297,2716.5,2715.2,0.00096]
[1645939760050,1.3697,2716.5,2715.2,0.00096]
[1645939760249,0.3697,2716.5,2715.6,1.1571836]
[1645939760450,0.3697,2716.5,2715.7,0.00096]
[1645939760650,11.6297,2716.5,2715.7,0.00096]
[1645939760851,12.6297,2716.5,2715.7,0.00096]
[1645939761454,0.1472,2716.4,2715.7,0.00096]
[1645939761651,0.1472,2716.4,2715.6,1.1571836]
[1645939762151,0.00572441,2716.2,2715.4,0.00390301]
[1645939763013,0.1472,2716.4,2715.2,0.00096]
[1645939763198,0.00572449,2716.0,2715.4,0.00390301]
[1645939763399,0.00572449,2716.0,2715.7,1.25255562]
[1645939763599,0.00572449,2716.0,2715.4,0.00390301]
[1645939764199,0.1472,2716.4,2715.2,0.00096]
[1645939764403,0.00570969,2716.0,2715.4,0.00385425]
[1645939765001,0.00570969,2716.0,2715.1,3.29421425]
[1645939765401,1.3076,2716.6,2715.1,4.51660021]
[1645939765606,2.1604,2716.6,2715.2,0.69138596]
[1645939765803,1.1604,2716.6,2715.3,3.5]
[1645939766004,1.1604,2716.6,2715.3,5.2792]
[1645939766303,1.1604,2716.6,2715.3,5.7482]
[1645939766748,1.4604,2716.6,2715.3,6.2792]
[1645939767350,1.4604,2716.6,2716.3,1.20972634]
[1645939767351,0.3,2716.6,2716.3,1.20972634]
[1645939767551,0.1472,2717.0,2716.3,1.20972634]
[1645939767750,4.52050287,2717.1,2716.3,1.20972634]
[1645939767751,1.84200287,2717.1,2716.3,1.20972634]
[1645939768150,0.84200287,2717.1,2716.3,1.20972634]
[1645939768351,0.1472,2717.0,2716.3,1.20972634]
[1645939769255,0.00593274,2716.8,2716.3,1.20972634]
[1645939770252,0.1472,2717.0,2716.3,1.20972634]
[1645939770495,0.00593279,2716.7,2716.3,1.20972634]
[1645939771298,0.84200287,2717.0,2716.3,1.20972634]
[1645939771700,0.00593282,2716.6,2716.3,1.20972634]
[1645939772499,0.84200287,2717.0,2716.3,1.20972634]
[1645939772902,0.00593284,2716.6,2716.3,1.20972634]
[1645939773699,0.84200287,2717.0,2716.3,1.20972634]
[1645939773905,0.84200287,2717.0,2716.0,1.2468]
[1645939774104,0.00593284,2716.6,2716.0,1.2468]
[1645939774942,0.69480287,2716.8,2716.0,1.2468]
[1645939775144,0.00593292,2716.4,2716.0,1.2468]
[1645939776151,1.21170287,2716.8,2716.0,1.2468]
[1645939776550,0.00593297,2716.3,2716.0,1.2468]
[1645939776752,0.53313913,2716.2,2716.0,1.2468]
[1645939777051,0.53313913,2716.2,2715.9,1.09590662]
[1645939777052,0.83313913,2716.2,2715.9,1.09494662]
[1645939777256,0.53313913,2716.1,2715.9,1.09494662]
[1645939778012,0.53313913,2716.1,2716.0,1.00960097]
[1645939778201,0.53313835,2716.1,2716.0,1.00960097]
[1645939778399,0.30593304,2716.2,2716.0,1.00960097]
[1645939778599,0.3,2716.2,2716.0,1.00960097]
[1645939778799,0.00593304,2716.2,2716.0,1.00960097]
[1645939779201,0.53322587,2716.1,2716.0,1.00960097]
[1645939780003,0.00593304,2716.2,2716.0,1.00960097]
[1645939780205,0.53322587,2716.1,2716.0,1.00960097]
[1645939781205,0.00593304,2716.2,2715.7,0.00096]
[1645939781405,0.53322587,2716.1,2715.6,1.00960097]
[1645939781605,0.53322587,2716.1,2715.7,1.00960097]
[1645939781845,0.53322587,2716.1,2715.8,1.00960097]
[1645939782044,0.53322587,2716.1,2715.9,1.00960097]
[1645939782246,0.53322587,2716.1,2715.7,1.43792186]
[1645939782454,0.53360277,2716.0,2715.8,1.01070478]
[1645939782647,0.53360277,2716.0,2715.9,1.01070478]
[1645939782949,0.53360277,2716.0,2715.4,0.00096]
[1645939782950,0.69731758,2715.8,2715.4,0.00096]
[1645939783148,0.69731758,2715.8,2715.3,1.01604399]
[1645939783149,0.53395922,2715.7,2715.3,1.01604399]
[1645939783347,0.53525741,2715.7,2715.4,1.01145484]
[1645939783556,0.53525741,2715.7,2715.5,1.01145484]
[1645939783750,0.54119068,2715.7,2715.6,1.01145484]
[1645939783947,0.54119068,2715.7,2715.4,1.01145484]
[1645939784351,0.00723146,2715.7,2715.3,0.00458915]
[1645939784549,0.53421576,2715.6,2715.4,1.01203818]
[1645939784748,0.00129819,2715.6,2715.5,1.01203818]
[1645939784951,0.00129819,2715.6,2715.3,1.03266198]
[1645939785151,0.53547397,2715.6,2715.4,1.01203818]
[1645939785348,0.53422659,2715.6,2715.4,1.01203818]
[1645939785997,0.53417578,2715.5,2715.4,1.01203818]
[1645939786196,5.081e-05,2715.6,2715.4,1.01203818]
[1645939786197,0.53422659,2715.6,2715.4,1.01203818]
[1645939787203,0.53417578,2715.5,2715.4,1.01203818]
[1645939787401,5.081e-05,2715.6,2715.4,1.01203818]
[1645939787804,0.53440123,2715.6,2715.4,1.01203818]
[1645939788403,5.081e-05,2715.6,2715.5,1.01203818]
[1645939788602,5.081e-05,2715.6,2715.4,1.01203818]
[1645939788801,0.53439365,2715.6,2715.5,1.01203818]
[1645939789243,5.081e-05,2715.6,2715.4,1.01203818]
[1645939789447,5.081e-05,2715.6,2715.5,1.01203818]
[1645939789645,5.081e-05,2715.6,2715.3,0.00458915]
[1645939789845,0.53446375,2715.6,2715.4,1.01203818]
[1645939790446,5.081e-05,2715.6,2715.4,2.3838783]
[1645939790652,5.081e-05,2715.6,2715.5,1.01203818]
[1645939790853,5.081e-05,2715.6,2715.3,0.00458915]
[1645939791053,0.53450478,2715.6,2715.4,1.01203818]
[1645939791253,5.081e-05,2715.6,2715.4,1.01203818]
[1645939791653,0.53457259,2715.6,2715.4,1.01203818]
[1645939792254,5.081e-05,2715.6,2715.5,1.01203818]
[1645939792457,5.081e-05,2715.6,2715.3,0.00458915]
[1645939792657,5.081e-05,2715.6,2715.4,1.01203818]
[1645939793013,5.081e-05,2715.6,2715.5,2.36573606]
[1645939794601,0.53476563,2715.6,2715.5,2.36573606]
[1645939794899,5.081e-05,2715.6,2715.5,2.36573606]
[1645939795502,5.081e-05,2715.6,2715.5,1.01203818]
[1645939796103,5.081e-05,2715.6,2715.4,1.01203818]
[1645939796304,5.081e-05,2715.6,2715.5,1.01203818]
[1645939796750,5.081e-05,2715.6,2715.3,0.00458915]
[1645939796951,5.081e-05,2715.6,2715.5,1.32302608]
[1645939797149,5.081e-05,2715.6,2715.5,2.33506426]
[1645939797551,0.53513537,2715.6,2715.5,2.33506426]
[1645939798057,5.081e-05,2715.6,2715.5,2.33506426]
[1645939798251,5.081e-05,2715.6,2715.3,0.69693511]
[1645939798457,0.53511346,2715.6,2715.3,0.69597511]
[1645939799054,0.53511346,2715.6,2715.3,0.69138596]
[1645939799254,5.081e-05,2715.6,2715.5,1.12594888]
[1645939799454,5.081e-05,2715.6,2715.5,2.13981186]
[1645939799654,0.53513149,2715.6,2715.5,2.13981186]
[1645939800509,0.0059333,2715.7,2715.6,6.5]
[1645939800715,0.0059333,2715.7,2715.6,8.21018777]
[1645939800909,0.0059333,2715.7,2715.6,19.07488777]
[1645939801308,0.0059333,2715.7,2715.6,18.37856298]
[1645939801508,0.69731758,2715.8,2715.6,18.37856298]
[1645939801708,0.69480287,2716.7,2715.8,7.69726675]
[1645939801909,0.69480287,2716.6,2715.9,4.51386298]
[1645939802109,0.5263377,2716.5,2716.0,1.01386298]
[1645939802308,0.69480287,2716.8,2716.0,1.01386298]
[1645939802309,0.5263377,2716.4,2716.0,1.01386298]
[1645939802510,0.5263377,2716.3,2716.0,1.01386298]
[1645939802909,0.5263377,2716.2,2716.1,1.35931205]
[1645939803107,0.52634324,2716.2,2716.1,2.37317503]
[1645939803310,0.69480287,2716.8,2716.1,2.37317503]
[1645939803507,0.69480287,2716.8,2716.2,1.02213658]
[1645939803508,0.99480287,2716.8,2716.2,1.02213658]
[1645939803709,0.52626302,2716.7,2716.2,1.02213658]
[1645939806052,0.52626302,2716.7,2716.3,1.02213658]
[1645939806256,0.52626302,2716.7,2716.4,1.02213658]
[1645939806552,0.00593284,2716.6,2716.5,1.02170409]
[1645939806751,0.53219586,2716.6,2715.9,4.7343]
[1645939806950,0.53219586,2716.6,2716.0,1.02170006]
[1645939806951,0.52626302,2716.5,2716.0,1.02170006]
[1645939807151,0.52626302,2716.4,2716.0,1.02170006]
[1645939807350,0.3,2716.8,2716.0,1.02170006]
[1645939807553,0.51301381,2716.7,2716.0,1.02170006]
[1645939807754,0.00593294,2716.4,2716.0,1.02170006]
[1645939808400,0.51305571,2716.3,2716.0,1.02170006]
[1645939808794,0.3,2716.7,2716.0,1.02170006]
[1645939808996,0.00593297,2716.3,2716.1,2.16842641]
[1645939809198,0.00593297,2716.3,2716.2,1.03479707]
[1645939809397,0.51896975,2716.3,2716.2,1.03479707]
[1645939809597,0.51896975,2716.3,2715.9,1.03479707]
[1645939809796,0.51301059,2716.2,2715.9,1.03479707]
[1645939809999,0.40227298,2716.4,2716.0,1.03479707]
[1645939810196,0.40227298,2716.4,2716.1,1.03479707]
[1645939810197,0.51302292,2716.3,2716.1,1.03479707]
[1645939810398,0.51302292,2716.3,2715.7,8.24498571]
[1645939810399,0.40227298,2716.4,2716.2,1.03479707]
[1645939810599,0.3,2716.7,2716.4,0.82258432]
[1645939810799,0.52041824,2716.6,2716.5,1.03479707]
[1645939811199,0.52041824,2716.8,2716.5,1.03479707]
[1645939811399,0.52041824,2716.7,2716.6,1.02699129]
[1645939811601,0.82041824,2716.7,2716.6,1.02699129]
[1645939811848,0.52041824,2716.7,2716.5,1.02699129]
[1645939812047,0.3,2716.7,2716.6,1.02699129]
[1645939812347,0.82036988,2716.7,2716.6,1.02699129]
[1645939812546,0.82036988,2716.7,2716.5,1.02699129]
[1645939812751,0.3,2716.7,2716.6,1.02699129]
[1645939812947,2.51507869,2717.0,2716.6,1.02699129]
[1645939813147,0.52027582,2716.7,2716.4,0.82258432]
[1645939813347,0.52027582,2716.6,2716.5,1.02685934]
[1645939813748,0.52027582,2716.6,2716.5,2.34692592]
[1645939813954,1.84708526,2717.4,2716.5,5.84692592]
[1645939814151,0.52012573,2717.3,2716.6,1.02685934]
[1645939814351,0.39634004,2717.0,2716.6,1.02685934]
[1645939814551,0.52012573,2716.9,2716.7,3.5]
[1645939814753,0.52012573,2716.9,2716.8,1.02685934]
[1645939814955,0.52012573,2716.9,2716.6,1.02685934]
[1645939815353,0.52012573,2716.9,2716.8,1.30261634]
[1645939815600,0.52012573,2716.9,2716.8,2.32947568]
[1645939817805,0.52012573,2716.9,2716.8,1.02685934]
[1645939818009,0.52012573,2716.9,2716.6,1.02685934]
[1645939818811,0.52012573,2716.9,2716.8,1.3100349]
[1645939819008,0.52012573,2716.9,2716.8,2.33689424]
[1645939819459,0.51661138,2716.9,2716.8,2.33689424]
[1645939819658,0.39634004,2716.9,2716.8,2.33689424]
[1645939822664,0.39634004,2716.9,2716.8,1.02685934]
[1645939822866,0.39634004,2716.9,2716.5,0.1472]
[1645939823126,1.06604004,2716.9,2716.4,1.99968432]
[1645939823324,1.06604004,2716.9,2716.4,0.82258432]
[1645939824526,0.00593274,2716.8,2716.4,0.82258432]
[1645939824926,0.76604004,2716.6,2716.4,0.82258432]
[1645939825726,0.77197285,2716.6,2716.4,0.82258432]
[1645939826227,0.40227285,2716.6,2716.4,0.82258432]
[1645939826432,0.77197285,2716.6,2716.4,0.82258432]
[1645939826628,0.76604004,2716.6,2716.4,0.82258432]
[1645939826855,0.40227285,2716.6,2716.4,0.82258432]
[1645939827862,0.39634004,2716.6,2716.4,0.82258432]
[1645939828162,0.40227285,2716.6,2716.4,0.82258432]
[1645939829165,0.39634004,2716.6,2716.4,0.82258432]
[1645939829365,0.40227285,2716.6,2716.4,0.82258432]
[1645939829966,0.00593281,2716.6,2716.4,0.82258432]
[1645939830366,0.39634004,2716.5,2716.4,0.82258432]
[1645939831117,0.00593281,2716.6,2716.5,0.13023892]
[1645939831529,1.21170287,2717.1,2716.5,0.13023892]
[1645939831530,0.3,2716.8,2716.5,0.13023892]
[1645939831718,0.00593279,2716.7,2716.5,0.13023892]
[1645939832721,0.1472,2717.1,2716.5,0.13023892]
[1645939832919,0.00593276,2716.7,2716.5,0.13023892]
[1645939833921,0.84200287,2717.1,2716.5,0.13023892]
[1645939834124,0.00593276,2716.7,2716.5,0.13023892]
[1645939835163,0.84200287,2717.1,2716.5,0.13023892]
[1645939835361,0.00593276,2716.7,2716.5,0.13023892]
[1645939836364,0.69480287,2717.1,2716.5,0.13023892]
[1645939836564,0.00593276,2716.7,2716.5,0.13023892]
[1645939837568,0.69480287,2717.1,2716.5,0.13023892]
[1645939837767,0.00593276,2716.7,2716.5,0.13023892]
[1645939838808,0.99480287,2717.0,2716.5,0.13023892]
[1645939839007,0.00593276,2716.7,2716.5,0.13023892]
[1645939839410,0.00593276,2716.7,2716.5,0.08023892]
[1645939839612,0.52830489,2716.6,2716.5,0.08023892]
[1645939839812,0.52830489,2716.6,2716.5,1.09935144]
[1645939841414,0.00593279,2716.7,2716.5,1.09935144]
[1645939841616,0.52830489,2716.6,2716.5,0.08023892]
[1645939841861,0.52830489,2716.6,2716.5,1.10013528]
[1645939843664,1.22310776,2716.9,2716.5,1.10013528]
[1645939843865,0.00593279,2716.7,2716.6,1.01989636]
[1645939844465,0.53423768,2716.7,2716.6,1.01989636]
[1645939844668,0.82830489,2716.7,2716.6,1.01989636]
[1645939848515,1.36450287,2716.7,2716.5,0.08023892]
[1645939848716,1.89605923,2716.6,2716.5,0.08023892]
[1645939849565,1.19800489,2716.6,2716.5,0.08023892]
[1645939849768,0.97550489,2716.6,2716.5,0.08023892]
[1645939850768,0.82830489,2716.6,2716.5,0.08023892]
[1645939851368,1.52620211,2716.6,2716.5,0.08023892]
[1645939851567,0.82830489,2716.6,2716.5,0.08023892]
[1645939851967,1.52620054,2716.6,2716.5,0.08023892]
[1645939854620,0.82830489,2716.6,2716.5,0.08023892]
[1645939856223,0.3,2716.6,2716.5,0.08023892]
[1645939856425,0.82830489,2716.6,2716.5,0.08023892]
[1645939857258,1.52574666,2716.6,2716.5,0.08023892]
[1645939857560,1.5257451,2716.6,2716.5,0.08023892]
[1645939858959,1.2257451,2716.6,2716.5,0.08023892]
[1645939859257,0.52830489,2716.6,2716.5,0.08023892]
[1645939859459,0.703373,2716.7,2716.5,0.08023892]
[1645939859660,0.52874529,2716.6,2716.5,0.08023892]
[1645939860362,0.82874529,2716.6,2716.5,0.08023892]
[1645939861405,1.5261855,2716.6,2716.5,0.08023892]
[1645939863209,0.82874529,2716.6,2716.5,0.08023892]
[1645939863409,0.99764826,2716.6,2716.5,0.08023892]
[1645939863612,1.52639355,2716.6,2716.5,0.08023892]
[1645939864260,1.52639355,2716.6,2716.5,0.07924508]
[1645939864261,0.82874529,2716.6,2716.5,0.07924508]
[1645939865671,12.45844529,2716.6,2716.5,0.07924508]
[1645939865862,14.06304911,2716.6,2716.5,0.07924508]
[1645939866061,14.13664529,2716.6,2716.5,0.07924508]
[1645939867060,2.87664529,2716.6,2716.5,0.07924508]
[1645939867261,1.87664529,2716.6,2716.5,0.07924508]
[1645939867462,2.87664529,2716.6,2716.5,0.07924508]
[1645939867862,3.80741927,2716.6,2716.5,0.07924508]
[1645939868117,3.80737705,2716.6,2716.5,0.07924508]
[1645939868309,15.06737705,2716.6,2716.5,0.07924508]
[1645939868808,3.80737705,2716.6,2716.5,0.07924508]
[1645939869007,15.06737705,2716.6,2716.5,0.07924508]
[1645939870813,14.13664529,2716.6,2716.5,0.07924508]
[1645939872963,15.52625102,2716.6,2716.5,0.07924508]
[1645939873362,14.13664529,2716.6,2716.5,0.07924508]
[1645939873761,14.13664529,2716.6,2716.5,0.02924508]
[1645939874967,13.76694529,2716.6,2716.5,0.02924508]
[1645939877006,15.15655102,2716.6,2716.5,0.02924508]
[1645939877205,13.76694529,2716.6,2716.5,0.02924508]
[1645939878607,11.26,2716.4,2715.7,0.00557816]
[1645939878809,0.69723541,2716.1,2715.7,0.00557816]
[1645939879008,11.95723541,2716.1,2715.7,0.00461816]
[1645939879273,0.52874529,2716.0,2715.6,6.90881816]
[1645939879460,0.52874529,2716.0,2715.7,1.00795317]
[1645939879665,0.52874529,2716.0,2715.8,1.00782772]
[1645939879866,0.52874529,2716.0,2715.6,6.90881816]
[1645939880066,0.49932257,2716.0,2715.7,1.00782555]
[1645939882067,0.49932257,2716.0,2715.7,0.54732555]
[1645939882268,0.99723541,2716.1,2715.7,1.7859982]
[1645939882468,0.3,2716.1,2715.7,1.23867265]
[1645939882672,0.3,2716.1,2715.6,6.90881816]
[1645939882868,1.29723541,2716.2,2715.6,6.90881816]
[1645939883100,0.99723541,2716.2,2715.6,6.90881816]
[1645939883503,0.70317143,2716.2,2715.7,3.5]
[1645939883717,0.00593602,2716.2,2716.0,1.1658823]
[1645939883906,0.00593602,2716.2,2715.7,3.50096]
[1645939884106,0.00593602,2716.2,2715.6,6.91342493]
[1645939884406,0.69723541,2716.5,2715.6,6.90881816]
[1645939884605,0.0059361,2716.2,2715.7,0.00096]
[1645939884805,0.0059361,2716.2,2715.6,6.91342493]
[1645939885205,0.0059361,2716.2,2715.6,6.45292493]
[1645939885609,0.99723541,2716.5,2715.6,6.44831816]
[1645939885808,0.00593602,2716.2,2715.7,0.00096]
[1645939886008,0.00593602,2716.2,2715.6,6.45292493]
[1645939886773,0.99723541,2716.5,2715.6,6.44831816]
[1645939886961,0.99723541,2716.5,2715.8,1.3626309]
[1645939887162,0.00593602,2716.2,2715.8,1.3626309]
[1645939887966,0.99723541,2716.5,2715.8,1.3626309]
[1645939888167,0.00593619,2716.2,2715.8,0.9021309]
[1645939889167,0.69723541,2716.4,2715.6,6.44831816]
[1645939889370,0.00593619,2716.2,2715.7,0.00096]
[1645939889569,0.00593619,2716.2,2715.6,6.45292493]
[1645939890369,0.69723541,2716.4,2715.6,6.44831816]
[1645939890615,0.70317143,2716.2,2715.6,6.45292493]
[1645939890814,0.69723541,2716.1,2715.7,0.00096]
[1645939891013,12.25723541,2716.1,2715.6,6.45292493]
[1645939891214,0.69723541,2716.0,2715.6,6.45292493]
[1645939891414,0.69723541,2716.0,2715.6,4.79293613]
[1645939891626,0.69723541,2716.0,2715.6,4.78832936]
[1645939891817,0.69723541,2716.0,2715.6,4.79293613]
[1645939892621,0.69723541,2715.9,2715.6,4.79293613]
[1645939892820,0.69723541,2715.9,2715.6,4.78832936]
[1645939893017,0.69723541,2715.9,2715.6,4.79293613]
[1645939893217,0.99723541,2715.9,2715.6,4.79293613]
[1645939894020,0.99723541,2715.9,2715.6,4.78832936]
[1645939894263,0.99723541,2715.9,2715.6,4.79293613]
[1645939895056,12.25723541,2715.9,2715.6,4.79293613]
[1645939895254,12.25723541,2715.9,2715.6,4.78832936]
[1645939895255,13.78823541,2715.9,2715.6,4.78832936]
[1645939895461,0.6977353,2715.7,2715.6,4.78971524]
[1645939895663,0.6977353,2715.7,2714.5,0.69638571]
[1645939895664,11.6297,2715.5,2714.5,0.69638571]
[1645939895862,11.6297,2715.5,2713.9,0.69638571]
[1645939895863,0.69756622,2714.9,2713.9,0.69638571]
[1645939896059,11.9382,2714.8,2713.8,5.14718571]
[1645939896363,1.37576622,2714.8,2713.8,5.14718571]
[1645939896559,1.9782,2714.8,2713.8,4.4508]
[1645939896766,0.9782,2714.8,2713.8,4.4508]
[1645939896959,3.5,2714.7,2713.8,4.4508]
[1645939897160,0.531,2714.6,2714.0,0.0394]
[1645939897561,0.831,2714.6,2714.0,0.0394]
[1645939898606,0.531,2714.6,2714.0,0.0394]
[1645939899310,0.531,2714.6,2714.2,0.00459181]
[1645939899510,4.20673652,2715.0,2714.2,1.322499]
[1645939899511,0.531,2714.9,2714.2,1.322499]
[1645939899708,0.1472,2714.8,2714.2,1.322499]
[1645939899909,0.56083471,2715.0,2714.2,1.322499]
[1645939900110,0.56083471,2715.0,2714.2,0.85730719]
[1645939900509,0.00129819,2715.0,2714.4,0.00459147]
[1645939900711,0.00129819,2715.0,2714.9,1.11503188]
[1645939902172,0.57866011,2715.0,2714.9,1.11503188]
[1645939902776,0.00129819,2715.0,2714.9,1.11503188]
[1645939902975,0.00129819,2715.0,2714.8,0.00459071]
[1645939903176,0.00129819,2715.0,2714.2,4.2313163]
[1645939903374,0.00129819,2715.0,2714.3,0.96752679]
[1645939903375,0.5785735,2715.0,2714.3,0.96752679]
[1645939903776,0.5785735,2715.0,2714.1,0.96752679]
[1645939903977,0.5785735,2715.0,2714.2,0.96752679]
[1645939904176,0.5785735,2715.0,2714.3,0.96752679]
[1645939904676,0.5785735,2715.0,2714.4,0.96752679]
[1645939904877,0.5785735,2715.0,2713.8,4.7444]
[1645939905078,0.5785735,2715.0,2714.1,0.96729346]
[1645939906129,0.5785735,2715.0,2714.1,0.50669346]
[1645939906328,0.5785735,2715.0,2713.8,4.7444]
[1645939906529,0.5785735,2715.0,2713.9,0.00096]
[1645939906930,0.1472,2714.9,2713.9,0.00096]
[1645939907335,0.1472,2714.9,2714.2,1.04265397]
[1645939907535,0.00594088,2714.6,2714.3,0.00453424]
[1645939908435,0.1472,2714.9,2714.2,1.04265397]
[1645939908635,0.00594088,2714.6,2714.3,0.00453424]
[1645939909759,0.1472,2714.9,2714.2,1.04265397]
[1645939909956,0.00594088,2714.6,2714.3,0.00453424]
[1645939910957,0.1472,2714.9,2714.2,1.04265397]
[1645939911256,0.00594088,2714.6,2714.3,0.00453424]
[1645939912056,0.1472,2714.9,2714.2,1.04265397]
[1645939912456,0.00594088,2714.6,2714.3,0.00453424]
[1645939913303,0.1472,2714.9,2714.2,1.04265397]
[1645939913506,0.00594088,2714.6,2714.3,0.00453424]
[1645939914506,0.1472,2714.9,2714.2,1.04265397]
[1645939914706,0.00594088,2714.6,2714.3,0.00453424]
[1645939914914,0.00286313,2714.6,2714.3,0.00453424]
[1645939915709,0.1472,2714.9,2714.2,1.04265397]
[1645939918370,0.00458077,2714.7,2714.2,1.04265397]
[1645939919376,0.00129819,2715.0,2714.2,1.04265397]
[1645939919572,0.00594064,2714.7,2714.3,0.00454186]
[1645939919771,0.00594064,2714.7,2714.3,0.00550186]
[1645939919978,0.00594064,2714.7,2714.3,0.00454186]
[1645939920622,0.00129819,2715.0,2714.2,1.04265397]
[1645939920824,0.00129819,2715.0,2714.7,1.1195331]
[1645939921123,0.00129819,2715.0,2714.3,0.00454185]
[1645939921621,0.00129819,2715.0,2714.0,0.04036]
[1645939922021,0.00594087,2714.8,2714.3,0.00454185]
[1645939922820,0.00129819,2715.0,2713.9,3.39036]
[1645939923021,0.00129819,2715.0,2714.5,1.3161319]
[1645939923221,0.00594081,2714.7,2714.5,1.3161319]
[1645939923423,0.00129819,2715.0,2714.7,0.00143261]
[1645939925075,0.00129819,2715.0,2714.9,1.41201639]
[1645939926275,0.00129819,2715.0,2714.9,2.36909974]
[1645939929520,0.56219249,2715.0,2714.9,2.36909974]
[1645939930622,0.56219249,2715.0,2714.9,0.95708335]
[1645939931023,0.56219249,2715.0,2714.7,0.00143261]
[1645939932766,0.56813326,2715.0,2714.7,0.00143261]
[1645939933167,0.56813326,2715.0,2714.8,1.01346476]
[1645939933468,0.56813326,2715.0,2714.9,0.95708335]
[1645939933666,0.56219249,2715.0,2714.9,0.95708335]
[1645939933967,0.56676658,2715.0,2714.9,0.95708335]
[1645939934769,1.15351404,2715.0,2714.9,0.95708335]
[1645939934968,1.14893995,2715.0,2714.9,0.95708335]
[1645939936216,1.14893995,2715.0,2714.7,0.00143261]
[1645939936416,0.56219249,2715.0,2714.7,0.00143261]
[1645939936614,0.58737655,2714.9,2714.7,0.00143261]
[1645939936815,0.58867474,2714.9,2714.7,0.00143261]
[1645939937219,0.58867474,2714.9,2714.8,1.40909759]
[1645939937417,0.58867474,2714.9,2714.8,2.36618094]
[1645939937619,0.59461355,2714.9,2714.8,2.36618094]
[1645939938518,0.00129819,2714.9,2714.8,2.36618094]
[1645939938816,0.58879855,2714.9,2714.8,2.36618094]
[1645939939959,0.00129819,2714.9,2714.8,0.95708335]
[1645939940161,0.58905883,2714.9,2714.8,0.95708335]
[1645939940360,0.58905883,2714.9,2714.7,0.00143261]
[1645939940361,0.88905883,2714.9,2714.7,0.00143261]
[1645939940565,0.58776064,2714.8,2714.7,0.00143261]
[1645939940970,0.58905883,2714.9,2714.7,0.95851596]
[1645939941163,0.58905883,2714.9,2714.7,0.00143261]
[1645939941164,0.58776064,2714.8,2714.7,0.00143261]
[1645939942365,0.59499766,2714.9,2714.7,0.00143261]
[1645939942565,0.58776064,2714.8,2714.7,0.00143261]
[1645939943017,0.58776064,2714.8,2714.7,0.9632701]
[1645939943207,0.58776064,2714.8,2714.7,0.00143261]
[1645939943409,0.58905883,2714.8,2714.7,0.00143261]
[1645939943809,0.58905883,2714.8,2714.7,0.9632701]
[1645939944009,0.58905883,2714.8,2714.7,0.00143261]
[1645939945814,0.00129819,2714.8,2714.7,0.00143261]
[1645939946013,0.00129819,2714.8,2714.7,0.9632701]
[1645939946219,0.58905883,2714.8,2714.7,0.00143261]
[1645939947274,0.58905883,2714.8,2714.7,0.9632701]
[1645939947474,0.58905883,2714.8,2714.7,0.00143261]
[1645939948478,0.58905883,2714.8,2714.7,0.9632701]
[1645939948676,0.58905883,2714.8,2714.7,0.00143261]
[1645939949680,0.00129819,2714.8,2714.7,0.9632701]
[1645939949879,0.58905883,2714.8,2714.7,0.9632701]
[1645939950080,0.58905883,2714.8,2714.7,0.00143261]
[1645939950822,0.30129819,2714.8,2714.7,0.00143261]
[1645939951118,0.88905883,2714.8,2714.7,0.9632701]
[1645939951321,0.88905883,2714.8,2714.7,0.00143261]
[1645939952921,0.30129819,2714.8,2714.7,0.00143261]
[1645939953123,0.88979361,2714.8,2714.7,0.00143261]
[1645939953320,0.30129819,2714.8,2714.7,0.00143261]
[1645939953520,0.8897922,2714.8,2714.7,0.00143261]
[1645939953721,0.30129819,2714.8,2714.7,0.00143261]
[1645939953921,0.88980329,2714.8,2714.7,0.00143261]
[1645939954563,0.88982842,2714.8,2714.7,0.00143261]
[1645939954764,0.30129819,2714.8,2714.7,0.00143261]
[1645939954965,0.88984036,2714.8,2714.7,0.00143261]
[1645939955365,1.97304036,2714.8,2714.7,0.00143261]
[1645939955570,1.97304036,2714.8,2714.7,0.00023001]
[1645939957573,2.34274036,2714.8,2714.7,0.00023001]
[1645939959216,3.04030658,2714.8,2714.7,0.00023001]
[1645939959420,3.02094036,2714.8,2714.7,0.00023001]
[1645939959618,5.24684036,2714.8,2714.7,0.00023001]
[1645939960015,5.09964036,2714.8,2714.7,0.00023001]
[1645939961221,17.28972865,2714.8,2714.7,0.00023001]
[1645939961422,16.35964036,2714.8,2714.7,0.00023001]
[1645939963862,17.28836813,2714.8,2714.7,0.00023001]
[1645939964867,16.05124036,2714.8,2714.7,0.00023001]
[1645939965921,21.05124036,2714.8,2714.7,0.00023001]
[1645939966114,16.97996813,2714.8,2714.7,0.00023001]
[1645939966314,17.0289757,2714.8,2714.7,0.00023001]
[1645939966514,16.97941831,2714.8,2714.7,0.00023001]
[1645939968816,16.05124036,2714.8,2714.7,0.00023001]
[1645939969262,16.97941831,2714.8,2714.7,0.00023001]
[1645939969864,16.05124036,2714.8,2714.7,0.00023001]
[1645939970267,16.97940603,2714.8,2714.7,0.00023001]
[1645939971369,20.17442522,2714.8,2714.7,0.00023001]
[1645939971569,21.15216056,2714.8,2714.7,0.00023001]
[1645939973431,20.22399489,2714.8,2714.7,0.00023001]